Workbook

Sheet Nov
C1: Månedsrapport | U1: Indtast mdr 1-12
B2: Navn: | J2: Måned: | L2: =CHOOSE(U2,"Jan-Feb","Feb-Mar","Mar-Apr","Apr-Maj","Maj-Jun","Jun-Jul","Jul-Aug","Aug-Sep","Sep_Okt","Okt-Nov","Nov-Dec","Dec-Jan") -> Jan-Feb | O2: År : | P2: 2021 | U2: 1
A4: Uge | B4: Dag | C4: Dato | D4: Vagttype | E4: Faktisk Møde Tid. Fra-Til | G4: Udf. Tim. Dag | H4: Norm | I4: Udf. Tim. A/N | J4: Afsp. Tim. | K4: Ku. Tim. | L4: Till. A/N | M4: Till Week- End | N4: Extra Tim. | O4: Timer 50% Tillæg | P4: Timer 100% Tillæg | Q4: Syg / Barn S/ Barsel | R4: Ferie Timer | S4: Ferie Fri Timer
A5: =_xlfn.ISOWEEKNUM(C5) -> 2 | B5: =CHOOSE(WEEKDAY(C5,11),"man", "Tirs","Ons","Tors","FRE","Lør","søn") -> Lør | C5: =DATE(P2,U2,16) -> 2017-01-15 | G5: =IF(OR(E5="",F5=""),"",(F5-E5)*24) ->  | H5: =IF(D5<>"",VLOOKUP(D5,Data!$M$3:$N$4,2,0),"") ->  | J5: =IF(OR(E5="",F5=""),"",IF(((U5-G5)*-1)<=0.25,"", IF((U5-G5)*-1<0,"",(U5-G5)*-1))) ->  | L5: =IF(OR(E5="",F5=""),"",IF(F5<=Data!$H$3,"",ColTime(Data!$H$3,Data!$H$4,E5,F5)*24)) ->  | O5: =IFERROR(IF(G5>=H5+3,3,G5-H5),"") ->  | P5: =IFERROR(IF(G5>H5+3,G5-(H5+3),""),"") ->  | U5: =IF(F5=E5," ",IF(F5<E5,(((0-E5)*24)+((F5)*24))+24,(F5-E5)*24)) -> 
A6: =IF(WEEKDAY(C6,11)=1,_xlfn.ISOWEEKNUM(C6),"") ->  | B6: =CHOOSE(WEEKDAY(C6,11),"man", "Tirs","Ons","Tors","FRE","Lør","søn") -> søn | C6: =C5+1 -> 2017-01-16 | H6: =IF(D6<>"",VLOOKUP(D6,Data!$M$3:$N$4,2,0),"") ->  | J6: =IF(OR(E6="",F6=""),"",IF(((U6-G6)*-1)<=0.25,"", IF((U6-G6)*-1<0,"",(U6-G6)*-1))) ->  | L6: =IF(OR(E6="",F6=""),"",IF(F6<=Data!$H$3,"",ColTime(Data!$H$3,Data!$H$4,E6,F6)*24)) ->  | U6: =IF(F6=E6," ",IF(F6<E6,(((0-E6)*24)+((F6)*24))+24,(F6-E6)*24)) -> 
A7: =IF(WEEKDAY(C7,11)=1,_xlfn.ISOWEEKNUM(C7),"") -> 3 | B7: =CHOOSE(WEEKDAY(C7,11),"man", "Tirs","Ons","Tors","FRE","Lør","søn") -> man | C7: =C6+1 -> 2017-01-17 | D7: 1 | E7: 07:45:00 | F7: 20:00:00 | G7: =IF(OR(E7="",F7=""),"",(F7-E7)*24) -> 12.25 | H7: =IF(D7<>"",VLOOKUP(D7,Data!$M$3:$N$4,2,0),"") -> 8.25 | L7: =IF(OR(E7="",F7=""),"",IF(F7<=Data!$H$3,"",ColTime(Data!$H$3,Data!$H$4,E7,F7)*24)) -> 3 | O7: 3 | P7: 1 | U7: 12.25
B8: =CHOOSE(WEEKDAY(C8,11),"man", "Tirs","Ons","Tors","FRE","Lør","søn") -> Tirs | C8: 2017-01-18 | G8: =IF(OR(E8="",F8=""),"",(F8-E8)*24) ->  | H8: =IF(D8<>"",VLOOKUP(D8,Data!$M$3:$N$4,2,0),"") ->  | L8: =IF(OR(E8="",F8=""),"",IF(F8<=Data!$H$3,"",ColTime(Data!$H$3,Data!$H$4,E8,F8)*24)) ->  | O8: =IFERROR(IF(G8>=H8+3,3,G8-H8),"") ->  | P8: =IFERROR(IF(G8>H8+3,G8-(H8+3),""),"") -> 
B9: Ons | C9: 2017-01-19 | D9: 2 | E9: 07:45:00 | F9: 18:00:00 | G9: =IF(OR(E9="",F9=""),"",(F9-E9)*24) -> 10.25 | H9: =IF(D9<>"",VLOOKUP(D9,Data!$M$3:$N$4,2,0),"") -> 10.25 | L9: =IF(OR(E9="",F9=""),"",IF(F9<=Data!$H$3,"",ColTime(Data!$H$3,Data!$H$4,E9,F9)*24)) -> 1 | O9: =IFERROR(IF(G9>=H9+3,3,G9-H9),"") -> 0 | P9: =IFERROR(IF(G9>H9+3,G9-(H9+3),""),"") ->  | U9: 10.25
B10: Tors | C10: 2017-01-20 | D10: 1 | E10: 07:45:00 | F10: 16:00:00 | G10: 8.25 | H10: =IF(D10<>"",VLOOKUP(D10,Data!$M$3:$N$4,2,0),"") -> 8.25 | L10: =IF(OR(E10="",F10=""),"",IF(F10<=Data!$H$3,"",ColTime(Data!$H$3,Data!$H$4,E10,F10)*24)) ->  | O10: -1.776356839e-15 | U10: =IF(F10=E10," ",IF(F10<E10,(((0-E10)*24)+((F10)*24))+24,(F10-E10)*24)) -> 8.25
B11: FRE | C11: 2017-01-21 | D11: 1 | E11: 07:45:00 | F11: 16:00:00 | G11: 8.25 | H11: =IF(D11<>"",VLOOKUP(D11,Data!$M$3:$N$4,2,0),"") -> 8.25 | L11: =IF(OR(E11="",F11=""),"",IF(F11<=Data!$H$3,"",ColTime(Data!$H$3,Data!$H$4,E11,F11)*24)) ->  | O11: -8.881784197e-15 | U11: 8.25
B12: Lør | C12: 2017-01-22 | H12: =IF(D12<>"",VLOOKUP(D12,Data!$M$3:$N$4,2,0),"") ->  | L12: =IF(OR(E12="",F12=""),"",IF(F12<=Data!$H$3,"",ColTime(Data!$H$3,Data!$H$4,E12,F12)*24)) -> 
B13: søn | C13: 2017-01-23 | H13: =IF(D13<>"",VLOOKUP(D13,Data!$M$3:$N$4,2,0),"") ->  | L13: =IF(OR(E13="",F13=""),"",IF(F13<=Data!$H$3,"",ColTime(Data!$H$3,Data!$H$4,E13,F13)*24)) -> 
A14: 4 | B14: man | C14: 2017-01-24 | D14: 1 | E14: 07:45:00 | F14: 16:00:00 | G14: 8.25 | H14: =IF(D14<>"",VLOOKUP(D14,Data!$M$3:$N$4,2,0),"") -> 8.25 | L14: =IF(OR(E14="",F14=""),"",IF(F14<=Data!$H$3,"",ColTime(Data!$H$3,Data!$H$4,E14,F14)*24)) ->  | O14: -1.776356839e-15 | U14: 8.25
B15: Tirs | C15: 2017-01-25 | H15: =IF(D15<>"",VLOOKUP(D15,Data!$M$3:$N$4,2,0),"") ->  | L15: =IF(OR(E15="",F15=""),"",IF(F15<=Data!$H$3,"",ColTime(Data!$H$3,Data!$H$4,E15,F15)*24)) -> 
B16: Ons | C16: 2017-01-26 | D16: 1 | E16: 07:45:00 | F16: 16:00:00 | G16: 8.25 | H16: =IF(D16<>"",VLOOKUP(D16,Data!$M$3:$N$4,2,0),"") -> 8.25 | L16: =IF(OR(E16="",F16=""),"",IF(F16<=Data!$H$3,"",ColTime(Data!$H$3,Data!$H$4,E16,F16)*24)) ->  | O16: -1.776356839e-15 | U16: 8.25
B17: Tors | C17: 2017-01-27 | D17: 1 | E17: 07:45:00 | F17: 16:00:00 | G17: 8.25 | H17: =IF(D17<>"",VLOOKUP(D17,Data!$M$3:$N$4,2,0),"") -> 8.25 | L17: =IF(OR(E17="",F17=""),"",IF(F17<=Data!$H$3,"",ColTime(Data!$H$3,Data!$H$4,E17,F17)*24)) ->  | O17: -1.776356839e-15 | U17: 8.25
B18: FRE | C18: 2017-01-28 | D18: 1 | E18: 07:45:00 | F18: 16:00:00 | G18: 8.25 | H18: =IF(D18<>"",VLOOKUP(D18,Data!$M$3:$N$4,2,0),"") -> 8.25 | L18: =IF(OR(E18="",F18=""),"",IF(F18<=Data!$H$3,"",ColTime(Data!$H$3,Data!$H$4,E18,F18)*24)) ->  | O18: -1.776356839e-15 | U18: 8.25
B19: Lør | C19: 2017-01-29 | H19: =IF(D19<>"",VLOOKUP(D19,Data!$M$3:$N$4,2,0),"") ->  | L19: =IF(OR(E19="",F19=""),"",IF(F19<=Data!$H$3,"",ColTime(Data!$H$3,Data!$H$4,E19,F19)*24)) -> 
B20: søn | C20: 2017-01-30 | H20: =IF(D20<>"",VLOOKUP(D20,Data!$M$3:$N$4,2,0),"") ->  | L20: =IF(OR(E20="",F20=""),"",IF(F20<=Data!$H$3,"",ColTime(Data!$H$3,Data!$H$4,E20,F20)*24)) -> 
A21: 5 | B21: man | C21: 2017-01-31 | D21: 1 | E21: 07:45:00 | F21: 16:00:00 | G21: 8.25 | H21: =IF(D21<>"",VLOOKUP(D21,Data!$M$3:$N$4,2,0),"") -> 8.25 | L21: =IF(OR(E21="",F21=""),"",IF(F21<=Data!$H$3,"",ColTime(Data!$H$3,Data!$H$4,E21,F21)*24)) ->  | O21: -1.776356839e-15 | U21: 8.25
B22: Tirs | C22: 2017-02-01 | D22: 1 | E22: 07:45:00 | F22: 16:00:00 | G22: 8.25 | H22: =IF(D22<>"",VLOOKUP(D22,Data!$M$3:$N$4,2,0),"") -> 8.25 | L22: =IF(OR(E22="",F22=""),"",IF(F22<=Data!$H$3,"",ColTime(Data!$H$3,Data!$H$4,E22,F22)*24)) ->  | O22: -1.776356839e-15 | U22: 8.25
B23: Ons | C23: 2017-02-02 | D23: 2 | E23: 07:45:00 | F23: 18:00:00 | G23: 10.25 | H23: =IF(D23<>"",VLOOKUP(D23,Data!$M$3:$N$4,2,0),"") -> 10.25 | L23: =IF(OR(E23="",F23=""),"",IF(F23<=Data!$H$3,"",ColTime(Data!$H$3,Data!$H$4,E23,F23)*24)) -> 1 | O23: 0 | U23: 10.25
B24: Tors | C24: 2017-02-03 | H24: =IF(D24<>"",VLOOKUP(D24,Data!$M$3:$N$4,2,0),"") ->  | L24: =IF(OR(E24="",F24=""),"",IF(F24<=Data!$H$3,"",ColTime(Data!$H$3,Data!$H$4,E24,F24)*24)) -> 
B25: FRE | C25: 2017-02-04 | D25: 1 | E25: 07:45:00 | F25: 16:00:00 | G25: 8.25 | H25: =IF(D25<>"",VLOOKUP(D25,Data!$M$3:$N$4,2,0),"") -> 8.25 | L25: =IF(OR(E25="",F25=""),"",IF(F25<=Data!$H$3,"",ColTime(Data!$H$3,Data!$H$4,E25,F25)*24)) ->  | O25: -1.776356839e-15 | U25: 8.25
B26: Lør | C26: 2017-02-05 | H26: =IF(D26<>"",VLOOKUP(D26,Data!$M$3:$N$4,2,0),"") ->  | L26: =IF(OR(E26="",F26=""),"",IF(F26<=Data!$H$3,"",ColTime(Data!$H$3,Data!$H$4,E26,F26)*24)) -> 
B27: søn | C27: 2017-02-06 | H27: =IF(D27<>"",VLOOKUP(D27,Data!$M$3:$N$4,2,0),"") ->  | L27: =IF(OR(E27="",F27=""),"",IF(F27<=Data!$H$3,"",ColTime(Data!$H$3,Data!$H$4,E27,F27)*24)) -> 
A28: 6 | B28: man | C28: 2017-02-07 | D28: 1 | E28: 07:45:00 | F28: 16:00:00 | G28: 8.25 | H28: =IF(D28<>"",VLOOKUP(D28,Data!$M$3:$N$4,2,0),"") -> 8.25 | L28: =IF(OR(E28="",F28=""),"",IF(F28<=Data!$H$3,"",ColTime(Data!$H$3,Data!$H$4,E28,F28)*24)) ->  | O28: -1.776356839e-15 | U28: 8.25
B29: Tirs | C29: 2017-02-08 | D29: 1 | E29: 07:45:00 | F29: 16:00:00 | G29: 8.25 | H29: =IF(D29<>"",VLOOKUP(D29,Data!$M$3:$N$4,2,0),"") -> 8.25 | L29: =IF(OR(E29="",F29=""),"",IF(F29<=Data!$H$3,"",ColTime(Data!$H$3,Data!$H$4,E29,F29)*24)) ->  | O29: -1.776356839e-15 | U29: 8.25
B30: Ons | C30: 2017-02-09 | D30: 2 | E30: 07:45:00 | F30: 18:00:00 | G30: 10.25 | H30: =IF(D30<>"",VLOOKUP(D30,Data!$M$3:$N$4,2,0),"") -> 10.25 | L30: =IF(OR(E30="",F30=""),"",IF(F30<=Data!$H$3,"",ColTime(Data!$H$3,Data!$H$4,E30,F30)*24)) -> 1 | O30: -8.881784197e-15 | U30: 10.25
B31: Tors | C31: 2017-02-10 | D31: 1 | E31: 07:45:00 | F31: 16:00:00 | G31: 8.25 | H31: =IF(D31<>"",VLOOKUP(D31,Data!$M$3:$N$4,2,0),"") -> 8.25 | L31: =IF(OR(E31="",F31=""),"",IF(F31<=Data!$H$3,"",ColTime(Data!$H$3,Data!$H$4,E31,F31)*24)) ->  | O31: -8.881784197e-15 | U31: 8.25
B32: FRE | C32: 2017-02-11 | H32: =IF(D32<>"",VLOOKUP(D32,Data!$M$3:$N$4,2,0),"") ->  | L32: =IF(OR(E32="",F32=""),"",IF(F32<=Data!$H$3,"",ColTime(Data!$H$3,Data!$H$4,E32,F32)*24)) -> 
A33: =IFERROR(IF(WEEKDAY(C33,11)=1,_xlfn.ISOWEEKNUM(C33),""),"") ->  | B33: =IFERROR(CHOOSE(WEEKDAY(C33,11),"man", "Tirs","Ons","Tors","FRE","Lør","søn"),"") -> Lør | C33: =IF(DAY(C32+1)>15,"",C32+1) -> 2017-02-12 | H33: =IF(D33<>"",VLOOKUP(D33,Data!$M$3:$N$4,2,0),"") ->  | L33: =IF(OR(E33="",F33=""),"",IF(F33<=Data!$H$3,"",ColTime(Data!$H$3,Data!$H$4,E33,F33)*24)) -> 
A34: =IFERROR(IF(WEEKDAY(C34,11)=1,_xlfn.ISOWEEKNUM(C34),""),"") ->  | B34: =IFERROR(CHOOSE(WEEKDAY(C34,11),"man", "Tirs","Ons","Tors","FRE","Lør","søn"),"") -> søn | C34: =IFERROR(C33+1,"") -> 2017-02-13 | H34: =IF(D34<>"",VLOOKUP(D34,Data!$M$3:$N$4,2,0),"") ->  | L34: =IF(OR(E34="",F34=""),"",IF(F34<=Data!$H$3,"",ColTime(Data!$H$3,Data!$H$4,E34,F34)*24)) -> 
A35: 7 | B35: man | C35: =IFERROR(IF(DAY(C34+1)>15,"",C34+1),"") -> 2017-02-14 | H35: =IF(D35<>"",VLOOKUP(D35,Data!$M$3:$N$4,2,0),"") ->  | L35: =IF(OR(E35="",F35=""),"",IF(F35<=Data!$H$3,"",ColTime(Data!$H$3,Data!$H$4,E35,F35)*24)) -> 
E36: SUM AF Tim./till.: | G36: =SUM(G5:G35) -> 142 | J36: =SUM(J5:J35) -> 0 | L36: =SUM(L5:L35) -> 6 | O36: =SUM(O5:O35) -> 3 | P36: =SUM(P5:P35) -> 1
C38: +/- Norm time overført fra sidste periode: | J38: +/- Norm time i periode: | O38: +/- Norm time til overførsel næste periode: | R38: =G36-151.66 -> -9.66
C39: +/- Afsp time overført fra sidste periode: | J39: Afsp. time i periode: | O39: +/- Afsp. Time i alt til overførsel: +/- afsp. tim.+ekstra tim.+OA tim.
C40: Kursus time i periode: | J40: Ekstra tim. I periode: | O40: Timer til udbetaling: A/N till. + evt. øverige timer | R40: =L36 -> 6
C41: Afholdt Ferie (I timer) i periode: | J41: Optj. OA tim. +50%: Time + 50% | M41: =O36*1.5 -> 4.5 | O41: Saldo Ferie timer til overførsel:
C42: Afholdt FerieFri time i periode: | J42: Optj. OA tim. +100%: Time + 100% | M42: =P36*2 -> 2 | O42: Saldo FerieFri time til overførsel:
C43: Optjent NY Ferie (dage) | G43: 2.08 | J43: Afholdt NY ferie(dage) | O43: Saldo NY ferie (dage)
C44: DATO: ______________________ | J44: UNDERSKRIFT: _______________________________ ml 01.09.20

Sheet Data
B2: Rulle Liste | D2: Rulle Liste | F2: Timer | H2: Coltime | J2: Vagttype | M2: Norm
D3: 07:45:00 | E3: 07:45:00 | F3: =SUM(Nov!G5:G35) -> 142 | H3: 17:00:00 | J3: 1 | K3: 07:45:00 | L3: 16:00:00 | M3: 1 | N3: 8.25
B4: 07:45:00 | C4: 16:00:00 | D4: 08:00:00 | E4: 08:00:00 | H4: 1 | J4: 2 | K4: 07:45:00 | L4: 18:00:00 | M4: 2 | N4: 10.25
C5: 18:00:00 | D5: 08:15:00 | E5: 08:15:00 | F5: Vagter
D6: 08:30:00 | E6: 08:30:00 | F6: =COUNT(Nov!G5:G35) -> 16
D7: 08:45:00 | E7: 08:45:00
D8: 09:00:00 | E8: 09:00:00 | F8: Vagter (S)
D9: 09:15:00 | E9: 09:15:00 | F9: =COUNTIF(Nov!G5:G35, 8.25) -> 10
D10: 09:30:00 | E10: 09:30:00
D11: 09:45:00 | E11: 09:45:00 | F11: Vagter (L)
D12: 10:00:00 | E12: 10:00:00 | F12: =COUNTIF(Nov!G5:G35, 10.25) -> 3
D13: 10:15:00 | E13: 10:15:00
D14: 10:30:00 | E14: 10:30:00
D15: 10:45:00 | E15: 10:45:00
D16: 11:00:00 | E16: 11:00:00
D17: 11:15:00 | E17: 11:15:00
D18: 11:30:00 | E18: 11:30:00
D19: 11:45:00 | E19: 11:45:00
D20: 12:00:00 | E20: 12:00:00
D21: 12:15:00 | E21: 12:15:00
D22: 12:30:00 | E22: 12:30:00
D23: 12:45:00 | E23: 12:45:00
D24: 13:00:00 | E24: 13:00:00
D25: 13:15:00 | E25: 13:15:00
D26: 13:30:00 | E26: 13:30:00
D27: 13:45:00 | E27: 13:45:00
D28: 14:00:00 | E28: 14:00:00
D29: 14:15:00 | E29: 14:15:00
D30: 14:30:00 | E30: 14:30:00
D31: 14:45:00 | E31: 14:45:00
D32: 15:00:00 | E32: 15:00:00
D33: 15:15:00 | E33: 15:15:00
D34: 15:30:00 | E34: 15:30:00
D35: 15:45:00 | E35: 15:45:00
D36: 16:00:00 | E36: 16:00:00
D37: 16:15:00 | E37: 16:15:00
E38: 16:30:00
E39: 16:45:00
E40: 17:00:00
E41: 17:15:00
E42: 17:30:00
E43: 17:45:00
E44: 18:00:00
E45: 18:15:00
E46: 18:30:00
E47: 18:45:00
E48: 19:00:00
E49: 19:15:00
E50: 19:30:00
E51: 19:45:00
E52: 20:00:00
